fUSD/lending_fUSD_20240726
["ID","MTS","AMOUNT","RATE_DAILY","PERIOD"]
[333261464,1722003035356,-500.0,0.00010998,2]
[333261465,1722003035366,-500.0,0.00010998,2]
[333261466,1722003035376,-392.98,0.00010998,2]
[333261467,1722003035388,-500.0,0.00010998,2]
[333261468,1722003035399,-500.0,0.00010998,2]
[333261469,1722003035409,-500.0,0.00010998,2]
[333261470,1722003035420,-500.0,0.00010998,2]
[333261471,1722003035430,-500.0,0.00010998,2]
[333261472,1722003035441,-500.4809293,0.00010998,2]
[333261473,1722003035451,-500.46570589,0.00010998,2]
[333261474,1722003035461,-594.38,0.00010998,2]
[333261475,1722003035472,-500.0,0.00010998,2]
[333261476,1722003035482,-500.0,0.00010998,2]
[333261477,1722003035492,-500.0,0.00010998,2]
[333261478,1722003035502,-502.52913,0.00010998,2]
[333261479,1722003035519,-500.0,0.00010998,2]
[333261480,1722003035528,-500.0,0.00010998,2]
[333261481,1722003035538,-500.0,0.00010998,2]
[333261482,1722003035549,-500.0,0.00010998,2]
[333261483,1722003035559,-564.99,0.00010998,2]
[333261484,1722003035569,-502.42396082,0.00010998,2]
[333261485,1722003035579,-502.65897812,0.00010998,2]
[333261486,1722003035589,-500.0,0.00010998,2]
[333261487,1722003035599,-500.0,0.00010998,2]
[333261488,1722003035608,-311.29,0.00010998,2]
[333261489,1722003035618,-500.0,0.00010998,2]
[333261490,1722003035629,-571.03,0.00010998,2]
[333261491,1722003035639,-583.11,0.00010998,2]
[333261492,1722003035649,-500.0,0.00010998,2]
[333261493,1722003035659,-500.0,0.00010998,2]
[333261494,1722003035669,-500.0,0.00010998,2]
[333261495,1722003035678,-519.09,0.00010998,2]
[333261496,1722003035688,-500.0,0.00010998,2]
[333261497,1722003035697,-465.16,0.00010998,2]
[333261498,1722003035707,-503.38050411,0.00010998,2]
[333261499,1722003035716,-500.0,0.00010998,2]
[333261500,1722003035726,-500.0,0.00010998,2]
[333261501,1722003035736,-243.41,0.00010998,2]
[333261502,1722003035745,-501.32216782,0.00010998,2]
[333261503,1722003035754,-500.0,0.00010998,2]
[333261504,1722003035767,-500.0,0.00010998,2]
[333261505,1722003035778,-500.0,0.00010998,2]
[333261506,1722003035793,-500.0,0.00010998,2]
[333261507,1722003035812,-505.55942829,0.00010998,2]
[333261508,1722003035824,-501.93768607,0.00010998,2]
[333261509,1722003035834,-500.0,0.00010998,2]
[333261510,1722003035844,-500.0,0.00010998,2]
[333261511,1722003035853,-500.0,0.00010998,2]
[333261512,1722003035863,-500.89558206,0.00010998,2]
[333261513,1722003035873,-500.0,0.00010998,2]
[333261514,1722003035883,-500.0,0.00010998,2]
[333261515,1722003035893,-500.0,0.00010998,2]
[333261516,1722003035903,-500.0,0.00010998,2]
[333261517,1722003035913,-371.16,0.00010998,2]
[333261518,1722003035922,-500.0,0.00010998,2]
[333261519,1722003035932,-501.40684588,0.00010998,2]
[333261520,1722003035941,-500.0,0.00010998,2]
[333261521,1722003035951,-500.0,0.00010998,2]
[333261522,1722003035960,-500.0,0.00010998,2]
[333261523,1722003035970,-500.0,0.00010998,2]
[333261524,1722003035979,-500.0,0.00010998,2]
[333261525,1722003035988,-239.52,0.00010998,2]
[333261526,1722003035998,-107.22121977,0.00010998,2]
[333261527,1722003036022,-392.77878023,0.00010998,2]
[333261528,1722003036031,-81.23492294,0.00010998,2]
[333261586,1722003037943,-3607.43337301,0.00010446,2]
[333261588,1722003037953,-418.76507706,0.00010998,2]
[333261590,1722003037963,-501.677742,0.00010998,2]
[333261591,1722003037972,-500.0,0.00010998,2]
[333261592,1722003037981,-500.0,0.00010998,2]
[333261593,1722003037990,-500.0,0.00010998,2]
[333261594,1722003038000,-500.0,0.00010998,2]
[333261595,1722003038010,-501.19268709,0.00010998,2]
[333261596,1722003038019,-500.0,0.00010998,2]
[333261597,1722003038028,-469.15,0.00010998,2]
[333261598,1722003038038,-479.23998017,0.00010998,2]
[333261599,1722003038047,-500.0,0.00010998,2]
[333261600,1722003038056,-500.0,0.00010998,2]
[333261601,1722003038066,-185.47,0.00010998,2]
[333261602,1722003038075,-500.0,0.00010998,2]
[333261603,1722003038085,-500.95867482,0.00010998,2]
[333261604,1722003038094,-575.81,0.00010998,2]
[333261605,1722003038104,-501.63362031,0.00010998,2]
[333261606,1722003038114,-500.0,0.00010998,2]
[333261607,1722003038124,-500.0,0.00010998,2]
[333261608,1722003038134,-500.0,0.00010998,2]
[333261609,1722003038143,-575.03,0.00010998,2]
[333261610,1722003038153,-600.76,0.00010998,2]
[333261611,1722003038163,-500.0,0.00010998,2]
[333261612,1722003038173,-500.0,0.00010998,2]
[333261613,1722003038182,-614.12,0.00010998,2]
[333261614,1722003038195,-500.0,0.00010998,2]
[333261615,1722003038205,-642.65,0.00010998,2]
[333261616,1722003038215,-500.0,0.00010998,2]
[333261617,1722003038224,-521.32750804,0.00010998,2]
[333261618,1722003038234,-502.54294117,0.00010998,2]
[333261619,1722003038244,-500.0,0.00010998,2]
[333261620,1722003038253,-501.70472696,0.00010998,2]
[333261621,1722003038265,-503.13055739,0.00010998,2]
[333261622,1722003038274,-501.15192128,0.00010998,2]
[333261623,1722003038284,-500.0,0.00010998,2]
[333261624,1722003038293,-500.0,0.00010998,2]
[333261625,1722003038303,-499.99549047,0.00010998,2]
[333261626,1722003038315,-500.0,0.00010998,2]
[333261627,1722003038324,-500.0,0.00010998,2]
[333261628,1722003038334,-501.19851374,0.00010998,2]
[333261629,1722003038344,-362.27786809,0.00010998,2]
[333261630,1722003038353,-500.0,0.00010998,2]
[333261631,1722003038363,-502.94342932,0.00010998,2]
[333261632,1722003038373,-500.0,0.00010998,2]
[333261633,1722003038382,-500.0,0.00010998,2]
[333261634,1722003038392,-500.0,0.00010998,2]
[333261635,1722003038401,-344.78,0.00010998,2]
[333261636,1722003038411,-501.73494227,0.00010998,2]
[333261637,1722003038420,-500.0,0.00010998,2]
[333261638,1722003038430,-501.30223464,0.00010998,2]
[333261639,1722003038440,-564.94,0.00010998,2]
[333261640,1722003038449,-500.0,0.00010998,2]
[333261641,1722003038459,-500.0,0.00010998,2]
[333261642,1722003038468,-500.0,0.00010998,2]
[333261643,1722003038478,-330.88884873,0.00010998,2]
[333261644,1722003038487,-500.22195183,0.00010998,2]
[333261645,1722003038498,-359.73808771,0.00010998,2]
[333261648,1722003038721,-140.26191229,0.00010998,2]
[333261649,1722003038731,-370.17308771,0.00010998,2]
[333261650,1722003038743,-168.83691229,0.00010998,2]
[333261651,1722003038753,-602.83745848,0.00010998,2]
[333261652,1722003038763,-79.07562923,0.00010998,2]
[333261653,1722003038774,-456.51437077,0.00010998,2]
[333261654,1722003038784,-502.79600548,0.00010998,2]
[333261655,1722003038797,-500.0,0.00010998,2]
[333261656,1722003038806,-597.76,0.00010998,2]
[333261657,1722003038818,-487.15684223,0.00010998,2]
[333261658,1722003038828,-353.80903834,0.00010998,2]
[333261659,1722003038838,-500.0,0.00010998,2]
[333261660,1722003038849,-500.0,0.00010998,2]
[333261661,1722003038859,-500.0,0.00010998,2]
[333261662,1722003038868,-500.0,0.00010998,2]
[333261663,1722003038878,-499.89,0.00010998,2]
[333261664,1722003038889,-500.0,0.00010998,2]
[333261665,1722003038899,-501.7205291,0.00010998,2]
[333261666,1722003038910,-501.75181075,0.00010998,2]
[333261667,1722003038920,-501.87244875,0.00010998,2]
[333261668,1722003038929,-500.0,0.00010998,2]
[333261669,1722003038939,-501.65285021,0.00010998,2]
[333261670,1722003038948,-500.0,0.00010998,2]
[333261671,1722003038958,-501.63354059,0.00010998,2]
[333261672,1722003038968,-501.62992113,0.00010998,2]
[333261673,1722003038978,-501.70858832,0.00010998,2]
[333261674,1722003038988,-615.45839905,0.00010998,2]
[333261675,1722003038998,-572.46,0.00010998,2]
[333261676,1722003039007,-521.17,0.00010998,2]
[333261677,1722003039022,-503.72361769,0.00010998,2]
[333261678,1722003039031,-500.0,0.00010998,2]
[333261679,1722003039040,-501.93612882,0.00010998,2]
[333261680,1722003039050,-500.0,0.00010998,2]
[333261681,1722003039060,-504.28972911,0.00010998,2]
[333261682,1722003039072,-500.0,0.00010998,2]
[333261683,1722003039082,-369.17536913,0.00010998,2]
[333261684,1722003039091,-500.0,0.00010998,2]
[333261685,1722003039100,-500.0,0.00010998,2]
[333261686,1722003039110,-518.57424153,0.00010998,2]
[333261687,1722003039119,-502.00107815,0.00010998,2]
[333261688,1722003039128,-500.0,0.00010998,2]
[333261689,1722003039137,-579.56,0.00010998,2]
[333261690,1722003039146,-500.0,0.00010998,2]
[333261691,1722003039155,-562.11931634,0.00010998,2]
[333261692,1722003039164,-500.31313177,0.00010998,2]
[333261693,1722003039174,-500.0,0.00010998,2]
[333261694,1722003039183,-508.1831751,0.00010998,2]
[333261695,1722003039192,-500.0,0.00010998,2]
[333261696,1722003039201,-500.0,0.00010998,2]
[333261697,1722003039210,-395.93,0.00010998,2]
[333261698,1722003039219,-500.0,0.00010998,2]
[333261699,1722003039228,-317.1,0.00010998,2]
[333261700,1722003039238,-500.0,0.00010998,2]
[333261701,1722003039247,-500.0,0.00010998,2]
[333261702,1722003039256,-237.39,0.00010998,2]
[333261703,1722003039267,-500.0,0.00010998,2]
[333261704,1722003039276,-502.35084967,0.00010998,2]
[333261705,1722003039285,-502.33,0.00010998,2]
[333261706,1722003039294,-500.58564872,0.00010998,2]
[333261707,1722003039303,-500.0,0.00010998,2]
[333261708,1722003039312,-1005.78028012,0.00010998,2]
[333261709,1722003039322,-549.95832553,0.00010998,2]
[333261710,1722003039331,-500.0,0.00010998,2]
[333261711,1722003039340,-297.05,0.00010998,2]
[333261712,1722003039349,-500.0,0.00010998,2]
[333261713,1722003039358,-500.0,0.00010998,2]
[333261714,1722003039368,-500.0,0.00010998,2]
[333261715,1722003039377,-421.88,0.00010998,2]
[333261717,1722003039387,-617.06,0.00010998,2]
[333261719,1722003039397,-500.0,0.00010998,2]
[333261720,1722003039407,-450.17,0.00010998,2]
[333261723,1722003039417,-500.0,0.00010998,2]
[333261725,1722003039428,-588.40000143,0.00010998,2]
[333261726,1722003039439,-500.0,0.00010998,2]
[333261727,1722003039449,-500.0,0.00010998,2]
[333261728,1722003039461,-500.0,0.00010998,2]
[333261729,1722003039472,-500.0,0.00010998,2]
[333261730,1722003039483,-501.79296353,0.00010998,2]
[333261731,1722003039494,-500.0,0.00010998,2]
[333261732,1722003039506,-615.72,0.00010998,2]
[333261733,1722003039524,-296.85,0.00010998,2]
[333261734,1722003039533,-500.0,0.00010998,2]
[333261735,1722003039543,-500.0,0.00010998,2]
[333261736,1722003039554,-349.85943308,0.00010998,2]
[333261737,1722003039565,-501.58016447,0.00010998,2]
[333261738,1722003039575,-500.0,0.00010998,2]
[333261739,1722003039584,-316.51,0.00010998,2]
[333261740,1722003039594,-501.47028841,0.00010998,2]
[333261741,1722003039603,-610.48,0.00010998,2]
[333261742,1722003039613,-500.0,0.00010998,2]
[333261743,1722003039623,-501.09913041,0.00010998,2]
[333261744,1722003039634,-500.0,0.00010998,2]
[333261745,1722003039644,-500.0,0.00010998,2]
[333261748,1722003039654,-310.13,0.00010998,2]
[333261751,1722003039663,-500.0,0.00010998,2]
[333261752,1722003039673,-193.42,0.00010998,2]
[333261754,1722003039683,-473.76582867,0.00010998,2]
[333261755,1722003039702,-24.39506721,0.00010998,2]
[333261756,1722003039712,-500.0,0.00010998,2]
[333261757,1722003039722,-383.02,0.00010998,2]
[333261758,1722003039731,-501.1312802,0.00010998,2]
[333261759,1722003039741,-500.0,0.00010998,2]
[333261760,1722003039750,-501.38776252,0.00010998,2]
[333261761,1722003039759,-501.63204545,0.00010998,2]
[333261762,1722003039772,-588.71,0.00010998,2]
[333261763,1722003039781,-501.30489903,0.00010998,2]
[333261764,1722003039792,-502.25492776,0.00010998,2]
[333261765,1722003039803,-500.0,0.00010998,2]
[333261766,1722003039812,-512.16389798,0.00010998,2]
[333261767,1722003039822,-500.0,0.00010998,2]
[333261768,1722003039832,-500.0,0.00010998,2]
[333261769,1722003039844,-501.11458819,0.00010998,2]
[333261770,1722003039854,-501.75329888,0.00010998,2]
[333261771,1722003039866,-500.60604938,0.00010998,2]
[333261772,1722003039878,-501.24350134,0.00010998,2]
[333261773,1722003039888,-500.99857339,0.00010998,2]
[333261774,1722003039897,-500.0,0.00010998,2]
[333261775,1722003039910,-500.0,0.00010998,2]
[333261776,1722003039919,-500.0,0.00010998,2]
[333261777,1722003039928,-500.0,0.00010998,2]
[333261778,1722003039939,-500.0,0.00010998,2]
[333261779,1722003039949,-312.27,0.00010998,2]
[333261780,1722003039958,-500.0,0.00010998,2]
[333261781,1722003039967,-430.16485378,0.00010998,2]
[333261782,1722003039977,-362.31,0.00010998,2]
[333261783,1722003039986,-501.98457897,0.00010998,2]
[333261784,1722003039995,-501.22167646,0.00010998,2]
[333261785,1722003040006,-501.43140193,0.00010998,2]
[333261786,1722003040017,-500.0,0.00010998,2]
[333261787,1722003040027,-500.0,0.00010998,2]
[333261788,1722003040036,-500.0,0.00010998,2]
[333261789,1722003040045,-501.06878815,0.00010998,2]
[333261790,1722003040054,-500.78268869,0.00010998,2]
[333261791,1722003040063,-500.0,0.00010998,2]
[333261792,1722003040072,-500.0,0.00010998,2]
[333261793,1722003040081,-631.55,0.00010998,2]
[333261794,1722003040091,-501.65557701,0.00010998,2]
[333261795,1722003040100,-500.0,0.00010998,2]
[333261796,1722003040109,-501.3296278,0.00010998,2]
[333261797,1722003040118,-500.0,0.00010998,2]
[333261798,1722003040127,-500.0,0.00010998,2]
[333261799,1722003040136,-509.59745685,0.00010998,2]
[333261800,1722003040145,-500.8866341,0.00010998,2]
[333261801,1722003040155,-500.72664304,0.00010998,2]
[333261802,1722003040164,-500.0,0.00010998,2]
[333261803,1722003040173,-500.46816316,0.00010998,2]
[333261804,1722003040182,-500.96494176,0.00010998,2]
[333261805,1722003040192,-500.0,0.00010998,2]
[333261806,1722003040201,-500.0,0.00010998,2]
[333261807,1722003040211,-500.0,0.00010998,2]
[333261808,1722003040220,-500.0,0.00010998,2]
[333261809,1722003040230,-500.0,0.00010998,2]
[333261810,1722003040240,-500.0,0.00010998,2]
[333261811,1722003040249,-500.0,0.00010998,2]
[333261812,1722003040259,-500.77208935,0.00010998,2]
[333261813,1722003040270,-500.0,0.00010998,2]
[333261814,1722003040279,-500.0,0.00010998,2]
[333261815,1722003040289,-500.0,0.00010998,2]
[333261816,1722003040299,-500.0,0.00010998,2]
[333261817,1722003040308,-500.0,0.00010998,2]
[333261818,1722003040318,-500.0,0.00010998,2]
[333261819,1722003040327,-500.0,0.00010998,2]
[333261820,1722003040337,-500.0,0.00010998,2]
[333261821,1722003040347,-500.0,0.00010998,2]
[333261822,1722003040356,-501.4315922,0.00010998,2]
[333261823,1722003040366,-500.0,0.00010998,2]
[333261824,1722003040375,-500.18694546,0.00010998,2]
[333261825,1722003040385,-500.0,0.00010998,2]
[333261826,1722003040394,-500.0,0.00010998,2]
[333261827,1722003040404,-500.0,0.00010998,2]
[333261828,1722003040413,-500.0,0.00010998,2]
[333261829,1722003040423,-500.0,0.00010998,2]
[333261830,1722003040432,-152.34,0.00010998,2]
[333261831,1722003040442,-208.71520376,0.00010998,2]
[333261832,1722003040454,-261.79463572,0.00010998,2]
[333261833,1722003040466,-29.73211871,0.00010998,2]
[333261834,1722003040476,-501.28660099,0.00010998,2]
[333261835,1722003040486,-501.31862989,0.00010998,2]
[333261836,1722003040495,-500.89056219,0.00010998,2]
[333261837,1722003040505,-500.38482985,0.00010998,2]
[333261838,1722003040516,-501.03029348,0.00010998,2]
[333261839,1722003040525,-500.62119233,0.00010998,2]
[333261840,1722003040534,-500.0,0.00010998,2]
[333261841,1722003040544,-500.0,0.00010998,2]
[333261842,1722003040553,-500.0,0.00010998,2]
[333261843,1722003040562,-500.0,0.00010998,2]
[333261844,1722003040571,-500.0,0.00010998,2]
[333261845,1722003040580,-500.0,0.00010998,2]
[333261846,1722003040589,-500.0,0.00010998,2]
[333261847,1722003040598,-500.0,0.00010998,2]
[333261848,1722003040607,-500.0,0.00010998,2]
[333261849,1722003040617,-500.0,0.00010998,2]
[333261850,1722003040627,-500.0,0.00010998,2]
[333261851,1722003040636,-500.0,0.00010998,2]
[333261852,1722003040646,-500.0,0.00010998,2]
[333261853,1722003040655,-500.0,0.00010998,2]
[333261854,1722003040665,-500.0,0.00010998,2]
[333261855,1722003040674,-500.0,0.00010998,2]
[333261856,1722003040684,-500.0,0.00010998,2]
[333261857,1722003040693,-440.43614534,0.00010998,2]
[333261858,1722003040702,-500.0,0.00010998,2]
[333261859,1722003040711,-500.0,0.00010998,2]
[333261860,1722003040721,-500.0,0.00010998,2]
[333261861,1722003040731,-500.0,0.00010998,2]
[333261862,1722003040742,-500.0,0.00010998,2]
[333261863,1722003040751,-500.0,0.00010998,2]
[333261864,1722003040762,-500.0,0.00010998,2]
[333261865,1722003040771,-500.0,0.00010998,2]
[333261866,1722003040780,-500.0,0.00010998,2]
[333261867,1722003040791,-500.0,0.00010998,2]
[333261868,1722003040802,-500.0,0.00010998,2]
[333261869,1722003040812,-500.0,0.00010998,2]
[333261870,1722003040821,-500.0,0.00010998,2]
[333261871,1722003040833,-500.0,0.00010998,2]
[333261872,1722003040844,-500.0,0.00010998,2]
[333261873,1722003040854,-500.0,0.00010998,2]
[333261874,1722003040864,-500.0,0.00010998,2]
[333261875,1722003040875,-500.0001,0.00010998,2]
[333261876,1722003040885,-500.0,0.00010998,2]
[333261877,1722003040894,-500.0,0.00010998,2]
[333261878,1722003040904,-500.0,0.00010998,2]
[333261879,1722003040913,-500.0,0.00010998,2]
[333261880,1722003040922,-500.0,0.00010998,2]
[333261881,1722003040931,-500.0,0.00010998,2]
[333261882,1722003040940,-500.0,0.00010998,2]
[333261883,1722003040949,-500.0,0.00010998,2]
[333261884,1722003040959,-500.0,0.00010998,2]
[333261885,1722003040968,-500.0,0.00010998,2]
[333261886,1722003040977,-500.0,0.00010998,2]
[333261887,1722003040986,-500.0,0.00010998,2]
[333261888,1722003040995,-561.29128322,0.00010998,2]
[333261889,1722003041004,-500.0,0.00010998,2]
[333261890,1722003041016,-500.0,0.00010998,2]
[333261891,1722003041025,-500.0,0.00010998,2]
[333261892,1722003041034,-500.0,0.00010998,2]
[333261893,1722003041043,-500.0,0.00010998,2]
[333261894,1722003041052,-500.0,0.00010998,2]
[333261895,1722003041061,-500.0,0.00010998,2]
[333261896,1722003041071,-536.14741777,0.00010998,2]
[333261897,1722003041080,-500.0,0.00010998,2]
[333261898,1722003041090,-500.0,0.00010998,2]
[333261899,1722003041099,-359.56820522,0.00010998,2]
[333261900,1722003041108,-500.0,0.00010998,2]
[333261901,1722003041117,-500.0,0.00010998,2]
[333261902,1722003041128,-500.0,0.00010998,2]
[333261903,1722003041137,-500.0,0.00010998,2]
[333261904,1722003041146,-500.0,0.00010998,2]
[333261905,1722003041156,-512.64,0.00010998,2]
[333261906,1722003041165,-500.0,0.00010998,2]
[333261907,1722003041175,-500.0,0.00010998,2]
[333261908,1722003041184,-500.0,0.00010998,2]
[333261909,1722003041193,-500.0,0.00010998,2]
[333261910,1722003041202,-280.82534519,0.00010998,2]
[333261911,1722003041211,-500.0,0.00010998,2]
[333261912,1722003041221,-500.0,0.00010998,2]
[333261913,1722003041230,-500.0,0.00010998,2]
[333261914,1722003041239,-500.0,0.00010998,2]
[333261915,1722003041248,-500.0,0.00010998,2]
[333261916,1722003041257,-500.0,0.00010998,2]
[333261917,1722003041269,-500.0,0.00010998,2]
[333261918,1722003041279,-500.0,0.00010998,2]
[333261919,1722003041288,-500.0,0.00010998,2]
[333261920,1722003041297,-500.0,0.00010998,2]
[333261921,1722003041306,-500.0,0.00010998,2]
[333261922,1722003041315,-500.0,0.00010998,2]
[333261923,1722003041324,-500.0,0.00010998,2]
[333261924,1722003041333,-500.0,0.00010998,2]
[333261925,1722003041342,-500.0,0.00010998,2]
[333261926,1722003041351,-500.0,0.00010998,2]
[333261927,1722003041361,-500.0,0.00010998,2]
[333261928,1722003041370,-500.0,0.00010998,2]
[333261929,1722003041379,-376.17,0.00010998,2]
[333261930,1722003041388,-1441.8033424,0.00010998,2]
[333261931,1722003041398,-500.0,0.00010998,2]
[333261932,1722003041407,-500.0,0.00010998,2]
[333261933,1722003041416,-500.0,0.00010998,2]
[333261934,1722003041426,-500.0,0.00010998,2]
[333261935,1722003041435,-500.0,0.00010998,2]
[333261936,1722003041444,-500.0,0.00010998,2]
[333261937,1722003041453,-11720.3001134,0.00010998,2]
[333261938,1722003041463,-150.0,0.00010998,2]
[333261939,1722003041472,-346.11,0.00010998,2]
[333261940,1722003041482,-500.0,0.00010998,2]
[333261941,1722003041491,-500.0,0.00010998,2]
[333261942,1722003041501,-500.0,0.00010998,2]
[333261943,1722003041511,-500.0,0.00010998,2]
[333261944,1722003041521,-209.5270684,0.00010998,2]
[333261945,1722003041530,-502.75326564,0.00010999,2]
[333261946,1722003041539,-713.47,0.00010999,2]
[333261947,1722003041549,-713.47,0.00010999,2]
[333261948,1722003041558,-713.47,0.00010999,2]
[333261949,1722003041567,-517.05,0.00010999,2]
[333261950,1722003041576,-500.0,0.00010999,2]
[333261951,1722003041585,-223.12,0.00010999,2]
[333261952,1722003041594,-713.47,0.00010999,2]
[333261953,1722003041604,-500.0,0.00010999,2]
[333261954,1722003041613,-713.47,0.00010999,2]
[333261955,1722003041622,-500.0,0.00010999,2]
[333261956,1722003041632,-500.0,0.00010999,2]
[333261957,1722003041641,-713.47,0.00010999,2]
[333261958,1722003041651,-500.0,0.00010999,2]
[333261959,1722003041660,-713.47,0.00010999,2]
[333261960,1722003041669,-500.0,0.00010999,2]
[333261962,1722003041678,-213.06,0.00010999,2]
[333261964,1722003041687,-713.47,0.00010999,2]
[333261966,1722003041696,-604.56,0.00010999,2]
[333261968,1722003041705,-713.47,0.00010999,2]
[333261970,1722003041714,-500.0,0.00010999,2]
[333261972,1722003041724,-713.47,0.00010999,2]
[333261974,1722003041733,-380.7,0.00010999,2]
[333261976,1722003041743,-500.0,0.00010999,2]
[333261978,1722003041751,-713.47,0.00010999,2]
[333261980,1722003041762,-500.0,0.00010999,2]
[333261982,1722003041771,-500.0,0.00010999,2]
[333261984,1722003041780,-713.47,0.00010999,2]
[333261986,1722003041794,-500.0,0.00010999,2]
[333261988,1722003041803,-713.47,0.00010999,2]
[333261990,1722003041813,-500.0,0.00010999,2]
[333261992,1722003041822,-713.47,0.00010999,2]
[333261994,1722003041831,-500.0,0.00010999,2]
[333261996,1722003041840,-577.71,0.00010999,2]
[333261998,1722003041849,-645.56,0.00010999,2]
[333262000,1722003041859,-713.47,0.00010999,2]
[333262002,1722003041869,-502.26451967,0.00010999,2]
[333262004,1722003041879,-577.71,0.00010999,2]
[333262006,1722003041888,-713.47,0.00010999,2]
[333262008,1722003041897,-500.0,0.00010999,2]
[333262010,1722003041906,-577.71,0.00010999,2]
[333262012,1722003041915,-713.47,0.00010999,2]
[333262014,1722003041924,-500.0,0.00010999,2]
[333262016,1722003041934,-577.71,0.00010999,2]
[333262018,1722003041943,-713.47,0.00010999,2]
[333262020,1722003041952,-577.71,0.00010999,2]
[333262022,1722003041963,-713.47,0.00010999,2]
[333262024,1722003041972,-577.71,0.00010999,2]
[333262026,1722003041981,-500.0,0.00010999,2]
[333262028,1722003041990,-500.0,0.00010999,2]
[333262030,1722003041999,-713.47,0.00010999,2]
[333262032,1722003042008,-577.71,0.00010999,2]
[333262033,1722003042018,-500.0,0.00010999,2]
[333262035,1722003042027,-383.54,0.00010999,2]
[333262037,1722003042037,-713.47,0.00010999,2]
[333262039,1722003042046,-580.65,0.00010999,2]
[333262042,1722003042056,-577.71,0.00010999,2]
[333262044,1722003042065,-500.0,0.00010999,2]
[333262046,1722003042075,-713.47,0.00010999,2]
[333262048,1722003042085,-577.71,0.00010999,2]
[333262050,1722003042095,-500.0,0.00010999,2]
[333262052,1722003042105,-569.95,0.00010999,2]
[333262054,1722003042115,-577.71,0.00010999,2]
[333262056,1722003042125,-500.0,0.00010999,2]
[333262058,1722003042136,-569.95,0.00010999,2]
[333262060,1722003042146,-713.47,0.00010999,2]
[333262062,1722003042156,-500.0,0.00010999,2]
[333262064,1722003042165,-577.71,0.00010999,2]
[333262066,1722003042175,-501.96565747,0.00010999,2]
[333262068,1722003042185,-500.0,0.00010999,2]
[333262070,1722003042195,-569.95,0.00010999,2]
[333262072,1722003042206,-713.62,0.00010999,2]
[333262074,1722003042215,-410.83,0.00010999,2]
[333262076,1722003042226,-577.71,0.00010999,2]
[333262078,1722003042235,-500.0,0.00010999,2]
[333262080,1722003042244,-569.95,0.00010999,2]
[333262082,1722003042253,-577.71,0.00010999,2]
[333262084,1722003042263,-400.97,0.00010999,2]
[333262086,1722003042274,-569.95,0.00010999,2]
[333262088,1722003042283,-577.71,0.00010999,2]
[333262090,1722003042293,-569.95,0.00010999,2]
[333262092,1722003042302,-500.0,0.00010999,2]
[333262094,1722003042312,-577.71,0.00010999,2]
[333262095,1722003042321,-569.95,0.00010999,2]
[333262097,1722003042331,-500.0,0.00010999,2]
[333262099,1722003042340,-577.71,0.00010999,2]
[333262101,1722003042350,-569.95,0.00010999,2]
[333262103,1722003042359,-500.0,0.00010999,2]
[333262105,1722003042369,-577.71,0.00010999,2]
[333262107,1722003042378,-569.95,0.00010999,2]